Workbook

Sheet T-12
A2: INCOME | B2: FEB, 2025 | C2: MAR, 2025 | D2: APRIL, 2025 | E2: MAY, 2025 | F2: JUNE, 2025 | G2: JULY, 2025 | H2: AUG, 2025 | I2: SEPT, 2025 | J2: OCT, 2025 | K2: NOV, 2025 | L2: DEC, 2025 | M2: JAN, 2025 | N2: TOTAL
A3: Rental Income | B3: 10620 | C3: 9560 | D3: 10451 | E3: 10260 | F3: 9590 | G3: 10450 | H3: 10205 | I3: 10860 | J3: 11020 | K3: 11249 | L3: 11490 | M3: 11800 | N3: =SUM(B3:M3) -> 127555
A4: Late Fees | B4: 320 | C4: 410 | D4: 220 | E4: 195 | F4: 310 | G4: 365 | H4: 180 | I4: 280 | J4: 245 | K4: 325 | L4: 265 | M4: 120 | N4: =SUM(B4:M4) -> 3235
A5: Other Income | B5: 0 | C5: 45 | D5: 0 | E5: 165 | F5: 0 | G5: 0 | H5: 45 | I5: 85 | J5: 0 | K5: 65 | L5: 0 | M5: 75 | N5: =SUM(B5:M5) -> 480
A6: Total Income | B6: =SUM(B3:B5) -> 10940 | C6: =SUM(C3:C5) -> 10015 | D6: 10671 | E6: 10620 | F6: 9900 | G6: 10815 | H6: 10430 | I6: 11225 | J6: 11265 | K6: 11639 | L6: 11755 | M6: 11995 | N6: =SUM(N3:N5) -> 131270
A9: EXPENSES | B9: FEB, 2025 | C9: MAR, 2025 | D9: APRIL, 2025 | E9: MAY, 2025 | F9: JUNE, 2025 | G9: JULY, 2025 | H9: AUG, 2025 | I9: SEPT, 2025 | J9: OCT, 2025 | K9: NOV, 2025 | L9: DEC, 2025 | M9: JAN, 2025 | N9: TOTAL
A10: Property taxes | B10: 1424 | C10: 1424 | D10: 1424 | E10: 1424 | F10: 1424 | G10: 1424 | H10: 1424 | I10: 1424 | J10: 1424 | K10: 1424 | L10: 1424 | M10: 1424 | N10: =SUM(B10:M10) -> 17088
A11: Insurance | B11: 750 | C11: 750 | D11: 750 | E11: 750 | F11: 750 | G11: 750 | H11: 750 | I11: 750 | J11: 750 | K11: 750 | L11: 750 | M11: 750 | N11: =SUM(B11:M11) -> 9000
A12: Water & Sewer (City of Houston) | B12: 810 | C12: 840 | D12: 556 | E12: 750 | F12: 860 | G12: 610 | H12: 754 | I12: 589 | J12: 710 | K12: 621 | L12: 554 | M12: 625 | N12: =SUM(B12:M12) -> 8279
A13: Repairs and Maintenance | B13: 230 | C13: 410 | D13: 635 | E13: 125 | F13: 435 | G13: 120 | H13: 65 | I13: 530 | J13: 295 | K13: 110 | L13: 195 | M13: 205 | N13: 3355
A14: Landscaping | B14: 200 | C14: 200 | D14: 200 | E14: 200 | F14: 200 | G14: 200 | H14: 200 | I14: 200 | J14: 200 | K14: 200 | L14: 200 | M14: 200 | N14: 2400
A15: Pest Control | B15: 91.6 | C15: 91.6 | D15: 91.6 | E15: 91.6 | F15: 91.6 | G15: 91.6 | H15: 91.6 | I15: 91.6 | J15: 91.6 | K15: 91.6 | L15: 91.6 | M15: 91.6 | N15: =SUM(B15:M15) -> 1099.2
A16: Trash | B16: 286 | C16: 234 | D16: 198 | E16: 290 | F16: 310 | G16: 256 | H16: 294 | I16: 305 | J16: 275 | K16: 224 | L16: 294 | M16: 252 | N16: 3218
A17: Mgmt Fees (5% Projection) | B17: =0.05*B6 -> 547 | C17: =0.05*C6 -> 500.75 | D17: 533.55 | E17: 531 | F17: 495 | G17: 540.75 | H17: 521.5 | I17: 561.25 | J17: 563.25 | K17: 581.95 | L17: 587.75 | M17: 599.75 | N17: 6563.5
N18: 0
A19: Operating Expenses | B19: =SUM(B10:B17) -> 4338.6 | C19: =SUM(C10:C17) -> 4450.35 | D19: 4388.15 | E19: 4161.6 | F19: 4565.6 | G19: 3992.35 | H19: 4100.1 | I19: 4450.85 | J19: 4308.85 | K19: 4002.55 | L19: 4096.35 | M19: 4147.35 | N19: 51002.7
A21: NOI | B21: =B6-B19 -> 6601.4 | C21: =C6-C19 -> 5564.65 | D21: 6282.85 | E21: 6458.4 | F21: 5334.4 | G21: 6822.65 | H21: 6329.9 | I21: 6774.15 | J21: 6956.15 | K21: 7636.45 | L21: 7658.65 | M21: 7847.65 | N21: =SUM(B21:M21) -> 80267.3

Sheet RR
A1: Rent Roll - JAN, 2026 MANUS APARTMENT
A3: PROPERTY | B3: BED/BATH | C3: TENANT | D3: MOVED IN | E3: LEASE END | F3: CURRENT RENT | G3: DEPOSIT | H3: PROJECTED RENT | I3: SQFT | J3: RENT/SQFT
A4: 8814 Manus Str Unit 1 | B4: 1x1 | C4: Eric R. Gonzalez and Kartera Williams | D4: 2025-09-01 | E4: 2026-10-31 | F4: 950 | G4: 895 | H4: 1000 | I4: 572 | J4: =F4/I4 -> 1.660839161 | K4: Total Units | L4: =COUNT(F4:F14) -> 11
A5: 8815 Manus Str Unit 2 | B5: 2x1 | C5: Seily Urbina, Brandon Castro | D5: 2025-09-01 | E5: 2026-09-30 | F5: 1200 | G5: 1100 | H5: 1250 | I5: 972 | J5: =F5/I5 -> 1.234567901 | K5: Vacant | L5: =COUNTIF(C:C,"*vacant*") -> 0
A6: 8816 Manus Str Unit 3 | B6: 2x1 | C6: Jose Cruz | D6: 2022-08-01 | E6: 2026-08-30 | F6: 1100 | G6: 0 | H6: 1200 | I6: 972 | J6: 1.131687243
A7: 8817 Manus Str Unit 4 | B7: 2x1 | C7: Olivia Bowie | D7: 2025-01-01 | E7: 2026-01-31 | F7: 1200 | G7: 800 | H7: 1250 | I7: 972 | J7: 1.234567901 | K7: Occupancy | L7: =(L4-L5)/L4 -> 1
A8: 8818 Manus Str Unit 5 | B8: 1x1 | C8: XXXXXXX | D8: 2026-02-01 | E8: 2027-02-28 | F8: 980 | G8: 0 | H8: 1000 | I8: 572 | J8: 1.713286713 | K8: Vacancy | L8: =L5/L4 -> 0
A9: 8819 Manus Str Unit 6 | B9: 2x1 | C9: Julissa Pacheco Funes | D9: 2025-02-01 | E9: 2027-02-01 | F9: 1100 | G9: 550 | H9: 1250 | I9: 972 | J9: 1.131687243
A10: 8820 Manus Str Unit 7 | B10: 1x1 | C10: Ameisha Windom | D10: 2025-12-17 | E10: 2027-01-31 | F10: 1000 | G10: 800 | H10: 1050 | I10: 572 | J10: 1.748251748 | K10: RR Total | L10: =H15 -> 12500
A11: 8821 Manus Str Unit 8 | B11: 2x1 | C11: Oscar Torres, Jovita Torres | D11: 2025-09-01 | E11: 2026-10-31 | F11: 1200 | G11: 0 | H11: 1250 | I11: 972 | J11: 1.234567901
A12: 8822 Manus Str Unit 9 | B12: 1x1 | C12: Rendall Murell | D12: 2024-09-01 | E12: 2026-09-30 | F12: 950 | G12: 0 | H12: 1000 | I12: 572 | J12: 1.660839161
A13: 8823 Manus Str Unit 10 | B13: 1x1 | C13: Alyrick King | D13: 2025-02-01 | E13: 2027-02-28 | F13: 1000 | G13: 800 | H13: 1000 | I13: 572 | J13: 1.748251748
A14: 8824 Manus Str Unit 11 | B14: 2x1 | C14: Leticia Trujillo | D14: 2017-09-01 | E14: 2026-10-30 | F14: 1200 | G14: 500 | H14: 1250 | I14: 972 | J14: 1.234567901
F15: =SUM(F4:F14) -> 11880 | G15: =SUM(G4:G14) -> 5445 | H15: =SUM(H4:H14) -> 12500 | I15: =SUM(I4:I14) -> 8692 | J15: =SUM(J4:J14) -> 15.73311462
